Cogmind - Beta 14 @@@ ROGUE MODE // 2024.08.24 @ 21:01:55 Player: Luca Result: Destroyed by EP-BZH(R) with Subdweller Laser Performance ------------- Evolutions (0) 0 Regions Visited (3) 600 Robots Destroyed (10) 50 Value Destroyed (246) 246 Prototype IDs (2) 40 Alien Tech Used (0) 0 Bonus (-30) -30 TOTAL SCORE: 906 Bonus ------- Friendly Fire -30 Cogmind --------- Core Integrity 0/250 Matter 292/300 Energy 80/100 System Corruption 6% Temperature Cool (6) Movement Core (50) Location -10/Subcaves Parts ------- > --- POWER (1) -------- (None) > --- PROPULSION (2) --- (None) > --- UTILITY (2) ------ (None) > --- WEAPON (2) ------- Beam Rifle > --- INVENTORY (5) ---- Terrain Scan Processor Peak State ------------ > --- POWER ------------ Improved Ion Engine > --- PROPULSION ------- Light Treads Light Treads > --- UTILITY ---------- Scrap Shield > --- WEAPON ----------- Beam Rifle Heavy Assault Rifle > --- INVENTORY -------- Terrain Scan Processor [Rating: 12] Favorites ----------- Power Improved Ion Engine Engine Improved Ion Engine Propulsion Light Treads Treads Light Treads Utility ECM Suite Device ECM Suite Storage Small Storage Unit Processor Signal Interpreter Protection Scrap Shield Weapon Beam Rifle Energy Gun Beam Rifle Energy Cannon Beam Cannon Ballistic Gun Heavy Assault Rifle Launcher Grenade Launcher Build | -11 -10 -10 -10 ------- Run | Yrd Mat Min Sub Slots Evolved . | . . . . Power . | . . . . Propulsion . | . . . . Utility . | . . . . Weapon . | . . . . Parts Attached 26 | 6 8 11 1 Power 3 | 1 1 1 . Engine 3 | 1 1 1 . Core . | . . . . Reactor . | . . . . Propulsion 5 | 2 . 3 . Treads 5 | 2 . 3 . Leg . | . . . . Wheel . | . . . . Hover . | . . . . Flight . | . . . . Utility 6 | 1 3 1 1 Device 2 | . 2 . . Storage 1 | 1 . . . Processor 2 | . 1 1 . Hackware . | . . . . Protection 1 | . . . 1 Artifact . | . . . . Weapon 12 | 2 4 6 . Energy Gun 2 | . . 2 . Energy Cannon 2 | . 1 1 . Ballistic Gun 5 | 2 1 2 . Ballistic Cannon . | . . . . Launcher 3 | . 2 1 . Special Weapon . | . . . . Impact Weapon . | . . . . Slashing Weapon . | . . . . Piercing Weapon . | . . . . Special Melee Weapon . | . . . . Unidentified Prototypes . | . . . . Parts Lost 7 | . . 2 5 Power 1 | . . . 1 Propulsion 2 | . . . 2 Utility 3 | . . 2 1 Weapon 1 | . . . 1 Highest Loss Streak 5 | . . 1 5 To Critical Strikes 1 | . . . 1 Average Slot Usage (%) 93 | . 96 94 77 Engine 13 | . 14 14 11 Treads 27 | . 28 27 26 Device 14 | . 3 22 . Storage 2 | . 10 . . Processor 3 | . 10 1 2 Protection 1 | . . . 9 Energy Gun 8 | . . 10 14 Energy Cannon 4 | . 7 3 . Ballistic Gun 11 | . 8 13 12 Launcher 3 | . 12 . . Peak Build Rating 12 | 6 7 10 12 Average Rating 8 | 4 6 8 10 On Entrance 5 | . 6 7 9 Naked Turns . | . . . . Heaviest Build 31 | 10 16 16 31 Greatest Support 40 | 40 40 40 40 Greatest Overweight (x) . | . . . . Average Overweight (x) . | . . . . Largest Inventory Capacity 8 | 8 8 5 5 Average Capacity 5 | 7 7 5 5 Most Carried 5 | 4 5 5 3 Average Carried 1 | . 2 2 1 Final Capacity 8 | 8 5 5 5 Final Carried 4 | . 4 1 1 Class Distribution -------------------- 51% | Mutant 48% | Scavenger-Mutant Dominant Class ---------------- Mutant | -10/Materials Scavenger-Mutant | -10/Mines Scavenger-Mutant | -10/Subcaves Resources | -11 -10 -10 -10 ----------- Run | Yrd Mat Min Sub Matter Collected 680 | 186 53 441 . Remotely . | . . . . Salvage Created 343 | . 109 198 36 Parts 14 | . 6 5 3 Haulers Intercepted . | . . . . Recyclers Shooed 1 | . . 1 . Parts Field Recycled . | . . . . Retrieved Matter . | . . . . Parts Self-Destructed . | . . . . Prevented . | . . . . Kills | -11 -10 -10 -10 ------- Run | Yrd Mat Min Sub Combat Hostiles Destroyed 18 | . 4 13 1 Guns 12 | . 1 10 1 AOE 6 | . 3 3 . Classes Destroyed 6 | . 3 2 1 Worker 2 | . . 2 . Builder 1 | . 1 . . Watcher 1 | . 1 . . Grunt 5 | . 4 1 . Subdweller 1 | . . . 1 Assembled 12 | . . 12 . Best Kill Streak 5 | . 3 5 1 Combat Bots Only 2 | . 2 2 1 Max Kills in Single Turn 2 | . 1 2 1 Gunslinging . | . . . . Exploded 2 | . 1 2 . Melee . | . . . . Uniques/NPCs Destroyed . | . . . . Combat | -11 -10 -10 -10 -------- Run | Yrd Mat Min Sub Hostile Shots Fired 112 | . 19 60 33 Missed 21 | . 4 11 6 Damage Taken 1475 | . 211 728 536 Core 264 | . 26 142 96 Absorbed by Shields . | . . . . Regen/Repaired (Parts) 58 | . 58 . . Core Remaining (%) 100 | 100 . . . Volleys Fired 65 | . 11 42 12 Largest 2 | . 2 2 2 Hottest 80 | . 80 80 79 Shots Fired 123 | . 21 84 18 Gun 99 | . 11 70 18 Cannon 10 | . 2 8 . Launcher 14 | . 8 6 . Special . | . . . . Kinetic 68 | . 11 51 6 Thermal 41 | . 2 27 12 Explosive 14 | . 8 6 . Electromagnetic . | . . . . Robot Hit Streak 6 | . 6 5 5 Robot Miss Streak 4 | . 3 4 1 Penetration Max . | . . . . Secondary Targets 1 | . . 1 . Max Gunslinging Chain 1 | . . 1 . Shots Hit Robots 70 | . 14 44 12 Core Hits 39 | . 10 26 3 Critical Kills . | . . . . Critical Parts Destroyed . | . . . . Critical Strikes 1 | . . . 1 Burn 1 | . . . 1 Melee Attacks . | . . . . Impact . | . . . . Slashing . | . . . . Piercing . | . . . . Sneak Attacks . | . . . . Combat Hostiles . | . . . . Follow-up Attacks . | . . . . Damage Inflicted 1588 | . 524 861 203 Guns 748 | . 56 489 203 Cannons 51 | . 34 17 . Explosions 789 | . 434 355 . Melee . | . . . . Ramming . | . . . . Kinetic 456 | . 56 328 72 Thermal 343 | . 34 178 131 Explosive 789 | . 434 355 . Electromagnetic . | . . . . Impact . | . . . . Slashing . | . . . . Piercing . | . . . . Highest Corruption 6 | . . 6 6 Average Corruption 4 | . . 3 6 Corruption Purged . | . . . . Corruption Blocked . | . . . . Effects 8 | . . 6 2 Matter Fused 1 | . . 1 . Heat Flow Errors 1 | . . 1 . Energy Discharges 1 | . . 1 . Parts Fused 1 | . . 1 . Data Loss (minor) 4 | . . 2 2 Overload Shots . | . . . . Overflow Damage 8 | . 8 . . Projectiles . | . . . . Explosions 8 | . 8 . . Melee . | . . . . Knockbacks . | . . . . Impact . | . . . . Kinetic . | . . . . Secondary . | . . . . Self-Inflicted Damage 26 | . 12 14 . Shots 2 | . 1 1 . Rammed . | . . . . Targets Rammed . | . . . . Kicked . | . . . . Crushed . | . . . . Highest Temperature 300 | . 60 300 . Average Temperature 72 | . 20 82 . Received Heat Transfer 696 | . 108 444 144 Siege Activations . | . . . . Robots Corrupted . | . . . . Combat Hostiles . | . . . . Parts Fried . | . . . . Impact Corruptions . | . . . . Robots Melted . | . . . . Combat Hostiles . | . . . . Parts Melted 1 | . 1 . . Heat Transferred 925 | . 74 444 407 Parts Sabotaged . | . . . . Parts Stolen . | . . . . Parts Stripped . | . . . . Power Chain Reactions . | . . . . Alert | -11 -10 -10 -10 ------- Run | Yrd Mat Min Sub Peak Influence 151 | . 151 148 . Initial 58 | . . 58 . Average 63 | . 90 58 . Maximum Alert Level . | . . . . Low Security (%) 100 | 100 100 100 . Level 1 . | . . . . Level 2 . | . . . . Level 3 . | . . . . Level 4 . | . . . . Level 5 . | . . . . High Security . | . . . . Max Security . | . . . . Squads Dispatched . | . . . . Investigation . | . . . . Extermination . | . . . . Reinforcement . | . . . . Assault . | . . . . Garrison . | . . . . Intercept . | . . . . Searches Triggered . | . . . . Construction Impeded . | . . . . Haulers Reinforced . | . . . . Active Scanning Responses . | . . . . Cargo Convoy Interrupts . | . . . . Stealth | -11 -10 -10 -10 --------- Run | Yrd Mat Min Sub Distress Signals 1 | . 1 . . Communications Jammed . | . . . . Distress Signals . | . . . . Times Spotted 32 | . 6 18 8 Peak Tracking Total 6 | . 3 3 6 Tactical Retreats 2 | . . 2 . Traps | -11 -10 -10 -10 ------- Run | Yrd Mat Min Sub Traps Triggered . | . . . . Indirectly . | . . . . Trap Hack Attempts . | . . . . Triggered . | . . . . Disarmed . | . . . . Reprogrammed . | . . . . Reused . | . . . . Traps Extracted . | . . . . Installed . | . . . . Triggered . | . . . . Machines | -11 -10 -10 -10 ---------- Run | Yrd Mat Min Sub Machines Disabled . | . . . . Max in Single Turn . | . . . . Machines Repaired . | . . . . Machines Dismantled . | . . . . Machines Sabotaged . | . . . . Overloaded Fab Kills . | . . . . Hacking | -11 -10 -10 -10 --------- Run | Yrd Mat Min Sub Machines Accessed 3 | . 3 . . Terminals 2 | . 2 . . Fabricators . | . . . . Repair Stations 1 | . 1 . . Recycling Units . | . . . . Scanalyzers . | . . . . Garrison Access . | . . . . Total Hacks 6 | . 6 . . Successful 5 | . 5 . . Failed 1 | . 1 . . Catastrophic . | . . . . Database Lockouts . | . . . . Manual . | . . . . Terminals 4 | . 4 . . Fabricators . | . . . . Repair Stations 2 | . 2 . . Recycling Units . | . . . . Scanalyzers . | . . . . Garrison Access . | . . . . Terminal Hacks 3 | . 3 . . Record 1 | . 1 . . Prototype ID Bank 1 | . 1 . . Dispatch Records 1 | . 1 . . Fabricator Hacks . | . . . . Repair Station Hacks 2 | . 2 . . Scan Component 1 | . 1 . . Repair 1 | . 1 . . Recycling Unit Hacks . | . . . . Scanalyzer . | . . . . Garrison Access Hacks . | . . . . Unauthorized Hacks . | . . . . Terminals . | . . . . Fabricators . | . . . . Repair Stations . | . . . . Recycling Units . | . . . . Scanalyzers . | . . . . Garrison Access . | . . . . Data Cores Recovered . | . . . . Used . | . . . . Hacking Detections . | . . . . Full Trace Events . | . . . . Feedback Events . | . . . . Feedback Blocked . | . . . . Robot Schematics Acquired . | . . . . Robots Built . | . . . . Authchips . | . . . . Time . | . . . . Total Robot Build Rating . | . . . . Part Schematics Acquired . | . . . . Parts Built . | . . . . Authchips . | . . . . Time . | . . . . Total Part Build Rating . | . . . . Parts Repaired 1 | . 1 . . Time 13 | . 13 . . Parts Recycled . | . . . . Recycled Matter . | . . . . Retrieved Matter . | . . . . Retrieved Components . | . . . . Parts Scanalyzed . | . . . . Part Schematics Acquired . | . . . . Parts Damaged . | . . . . Bothacking | -11 -10 -10 -10 ------------ Run | Yrd Mat Min Sub Used RIF Installer . | . . . . Robots Hacked . | . . . . Non-combat . | . . . . Combat . | . . . . Robot Hacks Applied . | . . . . Relay Couplers Released . | . . . . Fabnet Peak Effective % . | . . . . Robots Rewired . | . . . . Allies Hacked . | . . . . Hacks Repelled . | . . . . Allies | -11 -10 -10 -10 -------- Run | Yrd Mat Min Sub Total Allies . | . . . . Largest Group . | . . . . Highest-Rated Group . | . . . . Highest-Rated Ally . | . . . . Total Orders . | . . . . Ally Attacks . | . . . . Total Damage . | . . . . Kills . | . . . . Allies Corrupted . | . . . . Allies Melted . | . . . . Intel | -11 -10 -10 -10 ------- Run | Yrd Mat Min Sub Robot Analysis Total . | . . . . Derelict Logs Recovered 1 | . . . 1 Drone Launches . | . . . . Drone Recoveries . | . . . . Exploration | -11 -10 -10 -10 ------------- Run | Yrd Mat Min Sub Turns Passed 1332 | 78 317 770 167 Spaces Moved 609 | 47 148 340 74 Core 9 | 9 . . . Treads 600 | 38 148 340 74 Legs . | . . . . Wheels . | . . . . Hover . | . . . . Flight . | . . . . Fastest Speed 50 | 50 160 160 160 Average Speed 158 | 138 160 160 160 Slowest Speed 160 | 160 160 160 160 Overloaded Moves . | . . . . Propulsion Burnouts . | . . . . Robots Hopped . | . . . . Cave-ins Triggered . | . . . . Exploration Rate (%) 23 | 4 23 64 4 Regions Visited 3 Branch Regions 2 Pre-discovered Areas . | . . . . Known Exits Taken . | . . . . Unknown Exits Taken 3 | 1 1 1 . Scrap Searched . | . . . . Spaces Dug . | . . . . Terrain Destroyed 74 | . 31 43 . Melee . | . . . . Projectile . | . . . . AOE 74 | . 31 43 . Terrain Rammed . | . . . . Walls Destroyed . | . . . . Machines Disabled . | . . . . Actions | -11 -10 -10 -10 --------- Run | Yrd Mat Min Sub Total 866 | 60 210 490 106 Wait 132 | . 32 83 17 Move 606 | 46 147 339 74 Hop . | . . . . Pick Up 22 | 7 8 6 1 Fast Attach . | . . . . Attach 14 | 6 5 2 1 Detach 2 | . 2 . . Swap 12 | . 3 9 . Drop 13 | 1 2 9 1 Fire 65 | . 11 42 12 Melee . | . . . . Ram . | . . . . Kick . | . . . . Crush . | . . . . Escape Stasis . | . . . . Rewire . | . . . . Trap . | . . . . Miscellaneous . | . . . . Route ------- -11/Scrapyard -10/Materials -10/Mines (discovered 2 exits: [*Mat] / [*Sub]) -10/Subcaves (discovered 1 exit: [*Mat]) History --------- Turn | Location | Event 5 | -11/Scrapyard | Discovered new exit (range 16) 79 | -11/Scrapyard | Entered Materials 154 | -10/Materials | Discovered new exit (range 15) 337 | -10/Materials | Build established: Mutant 346 | -10/Materials | Repaired Grenade Launcher 396 | -10/Materials | Entered Mines 397 | -10/Mines | Assembled infested the area 662 | -10/Mines | Joined a pair of Derelicts in attacking an 0b10 outpost 915 | -10/Mines | Core integrity fell below 50% 982 | -10/Mines | Build established: Scavenger-Mutant 993 | -10/Mines | Discovered new exit (range 13) 1105 | -10/Mines | Discovered new exit (range 8) 1166 | -10/Mines | Entered Subcaves 1283 | -10/Subcaves | Ambushed by swarm of Subdwellers 1292 | -10/Subcaves | Disturbed a concealed Subdweller 1308 | -10/Subcaves | Learned Materials stockpile data 1310 | -10/Subcaves | Discovered new exit (range 10) 1315 | -10/Subcaves | Shifting Twisted Machinery released Mak. Thermal Plating 1324 | -10/Subcaves | Core integrity fell below 20% 1333 | -10/Subcaves | Destroyed by EP-BZH(R) with Subdweller Laser Last Messages --------------- Subatomizers dissect the Sub. Monowheel. P7-GWM(R) suffers critical hit (Burn). UV-8QT(R) affixes Scrap Shield Fragment to Scrap Shield. 8S-BH7(g) destroyed. P7-GWM(R) destroyed. R8-J6Y(g) suffers critical hit (Destroy). R8-J6Y(g) destroyed. NT-IY6(R) affixes Scrap Shield Fragment to Scrap Shield. Imp. Ion Engine destroyed. UV-8QT(R) affixes Scrap Shield Fragment to Scrap Shield. 2D-PRE(g) destroyed. Acquired derelict log, extracted data. Data stored: Materials stockpile data. EXIT=FOUND Scrap Shield destroyed. Mak. Thermal Plating falls loose from the Twisted Machinery. NT-IY6(R) destroyed. Critical hit (Destroy). Hvy. Assault Rifle destroyed. Lgt. Treads destroyed. Map ----- +----------------------------------------------------+ | ????????????????????????????????????????????? | | ????????????????????????????????????????????? | | ????????????????????????????????????????????? | | ????????????????????????????????????????????? | | ????????????????????????????????????????????? | | ????????????????????????????????????????????? | | ????????????????????????????????????????????? | | ?????????????????????#########?###?########## | | ?????????????????????# ### ### # # | | ????????????????????## #### | | ???????????????????## ##??## # # # ## # | | ???????????????????# ! #$???# ############### | | ??????????????????##!% #"???# #?????????????? | | ??????????????????#=%] #"???# #?????????????? | | ????????????????###!!!& #??? #?????????????? | | ????????????????#% =%[%!### #?????????????? | | ????????????????# &==%[! ###?????????????? | | ????????????????# """ *%####???????????????? | | ????????????????##""## !#??????????????????? | | ?????????????????##### #??????????????????? | | ?????????????????### #??????????????????? | | ?????????????????# ##??????????????????? | | ????????????????###R ##???????????????????? | | ???????????????## RR####????????????????????? | | ???????????????# ![ #?????????????????????? | | ???????????????#### @ #?????????????????????? | | ??????????????????# #?????????????????????? | | ??????????????????# #?????????????????????? | | ?????????????????# #?????????????????????? | | ????????????????# #?????????????????????? | | ????????????????# #?????????????????????? | | ????????????????# " < ?????????????????????? | | ????????????????##"" ! ?????????????????????? | | ?????????????????#" "" ????????????????????? | | ?????????????????## """????????????????????? | | ??????????????????## " #????????????????????? | | ??????????????????? ""?????????????????????? | | ??????????????????? ""??????????????????????? | | ???????????????????""???????????????????????? | | ??????????????????? ????????????????????????? | | ????????????????????????????????????????????? | | ????????????????????????????????????????????? | | ????????????????????????????????????????????? | | ????????????????????????????????????????????? | | ????????????????????????????????????????????? | | ????????????????????????????????????????????? | | ????????????????????????????????????????????? | | ????????????????????????????????????????????? | | ????????????????????????????????????????????? | | ????????????????????????????????????????????? | +----------------------------------------------------+ Best States ------------- Heat Dissipation 25 Energy Generation 12 Energy Capacity 265 Matter Stores 300 Matter Capacity 300 Sight Range 16 Terrain Scan Range 14 Terrain Scan Density 10 ECM Strength 1 Armor Coverage 800 Evasion (%) 50 Targeting Accuracy 5 Recoil Reduction 2 Item Schematics ----------------- None Robot Schematics ------------------ None Fabricated ------------ Nothing Alien Tech Used ----------------- None Achievements -------------- I Survived The Infestation Challenges ------------ None Game ------ Seed CorruptionChainField Manual? 0 Play Time 00:21:23 Cumulative 2.8 hours Start 2024.08.21 @ 10:34:48 End 2024.08.24 @ 21:01:55 Sessions 3 Manual Loads 0 Difficulty Rogue Special Mode None Game No. 6 Rogue 2 Adventurer 4 Explorer 0 Win Type - Total 0 Types 0/0/0/0/0/0/0/0/0 Lore% 3 Gallery% 7 Achievement% 7 Wizard Run 0 Options --------- Layout 0 ASCII 0 Keyboard 0 Movement Mouse Keybinds 0 Fullscreen 2 Font 24/Smallcaps Map View 76x50 Zoom Use 0% Tactical HUD 0 Map Filters NONE Filters NONE Steam 1 RUN: a883c8b4-beec-4fef-8a52-9051365f9b00